Cogmind - Beta 15 @@@ ROGUE MODE // 2025.09.14 @ 21:28:02 Player: lucasboxerhead Result: Destroyed by G-47 Trooper with Particle Gun Performance ------------- Evolutions (2) 1000 Regions Visited (3) 600 Robots Destroyed (64) 320 Value Destroyed (2019) 2019 Prototype IDs (0) 0 Alien Tech Used (0) 0 Bonus (0) 0 TOTAL SCORE: 3939 Bonus ------- None Cogmind --------- Core Integrity 0/550 Matter 33/300 Energy 100/100 System Corruption 0% Temperature Cool (9) Movement Core (350) Ox6 Location -8/Materials Parts ------- > --- POWER (1) -------- (None) > --- PROPULSION (3) --- (None) > --- UTILITY (5) ------ Large Storage Unit > --- WEAPON (2) ------- (None) > --- INVENTORY (15) --- Ion Engine Improved Ion Engine Heat Sink Medium Matter Pod (0) Signal Interpreter Recoil Stabilizer Hardened Medium Armor Plating Improved Light Cannon Peak State ------------ > --- POWER ------------ Improved Ion Engine > --- PROPULSION ------- Light Treads Light Treads Light Treads > --- UTILITY ---------- Improved Heat Sink Large Storage Unit Improved Targeting Computer Recoil Stabilizer Hardened Light Armor Plating > --- WEAPON ----------- Improved Light Cannon Improved Light Cannon > --- INVENTORY -------- Ion Engine Improved Ion Engine Improved Ion Engine Light Treads Light Treads Light Treads Heat Sink Medium Matter Pod Signal Interpreter Recoil Stabilizer Improved Light Cannon Rocket Launcher [Rating: 21] Favorites ----------- Power Improved Ion Engine Engine Improved Ion Engine Propulsion Light Treads Treads Light Treads Utility Large Storage Unit Device Recoil Stabilizer Storage Large Storage Unit Processor Improved Targeting Computer Protection Hardened Light Armor Plating Weapon Improved Light Cannon Ballistic Gun Light Assault Rifle Ballistic Cannon Improved Light Cannon Launcher Rocket Launcher Build | -11 -10 -9 -8 ------- Run | Yrd Mat Mat Mat Slots Evolved 4 | . . 2 2 Power . | . . . . Propulsion 1 | . . 1 . Utility 3 | . . 1 2 Weapon . | . . . . Parts Attached 28 | 6 7 9 6 Power 4 | 1 1 1 1 Engine 4 | 1 1 1 1 Core . | . . . . Reactor . | . . . . Propulsion 7 | 2 1 2 2 Treads 7 | 2 1 2 2 Leg . | . . . . Wheel . | . . . . Hover . | . . . . Flight . | . . . . Utility 9 | 1 2 4 2 Device 3 | . . 2 1 Storage 3 | 1 2 . . Processor 1 | . . 1 . Hackware . | . . . . Protection 2 | . . 1 1 Artifact . | . . . . Weapon 8 | 2 3 2 1 Energy Gun . | . . . . Energy Cannon . | . . . . Ballistic Gun 2 | 2 . . . Ballistic Cannon 4 | . 2 1 1 Launcher 2 | . 1 1 . Special Weapon . | . . . . Impact Weapon . | . . . . Slashing Weapon . | . . . . Piercing Weapon . | . . . . Special Melee Weapon . | . . . . Unidentified Prototypes . | . . . . Parts Lost 19 | . 1 3 15 Power 2 | . . . 2 Propulsion 7 | . 1 . 6 Utility 5 | . . 1 4 Weapon 5 | . . 2 3 Highest Loss Streak 12 | . 1 1 12 To Critical Strikes . | . . . . Average Backups 7 | . 5 7 10 Power 1 | . . 1 2 Propulsion 1 | . . 1 1 Utility 1 | . . 1 3 Weapon 2 | . 4 2 1 Tool/Special . | . . . . Unused Backups 5 | . . . 5 Power 1 | . . . 1 Propulsion . | . . . . Utility 4 | . . . 4 Weapon . | . . . . Tool/Special . | . . . . Average Slot Usage (%) 88 | . 82 89 93 Engine 11 | . 14 11 8 Treads 28 | . 28 32 25 Device 6 | . . 5 16 Storage 11 | . 14 11 9 Processor 4 | . . 5 8 Protection 3 | . . 3 8 Ballistic Cannon 18 | . 24 15 14 Launcher 2 | . . 4 2 Peak Build Rating 21 | 6 11 17 21 Average Rating 13 | 4 9 13 18 On Entrance 7 | . 6 8 17 Naked Turns . | . . . . Heaviest Build 42 | 12 31 39 42 Greatest Support 60 | 40 40 60 60 Greatest Overweight (x) 1 | . . . 1 Average Overweight (x) . | . . . . Largest Inventory Capacity 15 | 8 15 15 15 Average Capacity 12 | 6 9 15 15 Most Carried 13 | . 8 13 12 Average Carried 7 | . 5 7 10 Final Capacity 15 | 8 15 15 15 Final Carried 13 | . 7 13 8 Class Distribution -------------------- 96% | Mutant 3% | Scavenger-Mutant Dominant Class ---------------- Mutant | -10/Materials Mutant | -9/Materials Mutant | -8/Materials Resources | -11 -10 -9 -8 ----------- Run | Yrd Mat Mat Mat Matter Collected 1247 | 260 239 478 270 Remotely . | . . . . Salvage Created 1705 | . 541 611 553 Parts 98 | . 41 35 22 Haulers Intercepted 4 | . 2 1 1 Recyclers Shooed 5 | . 1 1 3 Parts Field Recycled . | . . . . Retrieved Matter . | . . . . Parts Self-Destructed . | . . . . Prevented . | . . . . Kills | -11 -10 -9 -8 ------- Run | Yrd Mat Mat Mat Combat Hostiles Destroyed 49 | . 15 18 16 Cannons 38 | . 12 14 12 AOE 11 | . 3 4 4 Classes Destroyed 10 | . 5 3 2 Worker 4 | . 3 . 1 Builder 2 | . . 1 1 Hauler 4 | . 2 1 1 Recycler 3 | . . 1 2 Watcher 2 | . 1 . 1 Swarmer 6 | . 3 . 3 Grunt 36 | . 12 15 9 Sentry 4 | . . 3 1 Specialist 2 | . . . 2 Hunter 1 | . . . 1 Best Kill Streak 9 | . 6 6 9 Combat Bots Only 6 | . 5 5 6 Max Kills in Single Turn 3 | . 2 2 3 Gunslinging . | . . . . Exploded 2 | . 2 2 2 Melee . | . . . . Uniques/NPCs Destroyed . | . . . . Combat | -11 -10 -9 -8 -------- Run | Yrd Mat Mat Mat Hostile Shots Fired 318 | . 50 89 179 Missed 96 | . 16 26 54 Hits 222 | . 34 63 125 Projectile 222 | . 34 63 125 Critical Strikes 7 | . . 2 5 Damage Taken 3348 | . 378 836 2134 Core 735 | . 47 132 556 Absorbed by Shields . | . . . . Regen/Repaired (Parts) 273 | . . 121 152 Core Remaining (%) 82 | 100 81 67 . Volleys Fired 166 | . 46 57 63 Largest 2 | . 2 2 2 Hottest 66 | . 66 66 66 Shots Fired 233 | . 66 66 101 Gun . | . . . . Cannon 215 | . 62 60 93 Launcher 18 | . 4 6 8 Special . | . . . . Kinetic 215 | . 62 60 93 Thermal . | . . . . Explosive 18 | . 4 6 8 Electromagnetic . | . . . . Robot Hit Streak 13 | . 5 11 13 Robot Miss Streak 4 | . 4 2 3 Penetration Max . | . . . . Secondary Targets . | . . . . Shots Hit Robots 151 | . 35 44 72 Core Hits 92 | . 24 29 39 Critical Kills . | . . . . Critical Parts Destroyed . | . . . . Critical Strikes 4 | . . 1 3 Blast 4 | . . 1 3 Melee Attacks . | . . . . Impact . | . . . . Slashing . | . . . . Piercing . | . . . . Sneak Attacks . | . . . . Combat Hostiles . | . . . . Follow-up Attacks . | . . . . Damage Inflicted 4458 | . 981 1396 2081 Guns . | . . . . Cannons 2922 | . 732 863 1327 Explosions 1520 | . 249 524 747 Melee . | . . . . Ramming 16 | . . 9 7 Kinetic 2922 | . 732 863 1327 Thermal 187 | . . . 187 Explosive 1333 | . 249 524 560 Electromagnetic . | . . . . Impact . | . . . . Slashing . | . . . . Piercing . | . . . . Highest Corruption . | . . . . Average Corruption . | . . . . Corruption Purged . | . . . . Corruption Blocked . | . . . . Overload Shots . | . . . . Overflow Damage 40 | . . . 40 Projectiles 3 | . . . 3 Explosions 37 | . . . 37 Melee . | . . . . Knockbacks 22 | . 4 4 14 Impact . | . . . . Kinetic 22 | . 4 4 14 Secondary . | . . . . Self-Inflicted Damage . | . . . . Shots . | . . . . Rammed 2 | . . 1 1 Targets Rammed 2 | . . 1 1 Kicked . | . . . . Crushed . | . . . . Highest Temperature 65 | . 60 65 24 Average Temperature 14 | . 15 17 7 Received Heat Transfer 1287 | . 180 432 675 Siege Activations . | . . . . Martial Activations . | . . . . Shielding Activations . | . . . . Robots Disrupted . | . . . . Combat Hostiles . | . . . . Robots Corrupted . | . . . . Combat Hostiles . | . . . . Parts Fried . | . . . . Impact Corruptions . | . . . . Robots Melted . | . . . . Combat Hostiles . | . . . . Parts Melted . | . . . . Heat Transferred 100 | . . . 100 Parts Sabotaged . | . . . . Parts Stolen . | . . . . Parts Stripped . | . . . . Power Chain Reactions . | . . . . Alert | -11 -10 -9 -8 ------- Run | Yrd Mat Mat Mat Maximum Alert Level 1 | . 1 1 1 Low Security (%) 65 | 100 83 25 87 Level 1 34 | . 16 74 12 Level 2 . | . . . . Level 3 . | . . . . Level 4 . | . . . . Level 5 . | . . . . High Security . | . . . . Max Security . | . . . . Peak Influence 362 | . 257 339 362 Initial 98 | . . 87 98 Average 133 | . 96 216 101 Influence Increases 1563 | . 485 520 558 Destroy 0b10 Robot/C 980 | . 300 360 320 Destroy 0b10 Robot/NC 75 | . 30 15 30 Destroy Leader 212 | . 66 72 74 Successful Hack 8 | . . 5 3 Disable Machine 150 | . 75 30 45 Destroy Structure 123 | . 14 38 71 Lose Combat Pursuer 15 | . . . 15 Influence Decreases 1331 | . 276 494 561 Entered New Map 259 | . . 122 137 Time Decay 882 | . 266 342 274 Lost Part 190 | . 10 30 150 Squads Dispatched 13 | . 4 1 8 Investigation 3 | . 1 . 2 Extermination . | . . . . Reinforcement 7 | . 3 1 3 Assault . | . . . . Garrison 3 | . . . 3 Intercept . | . . . . Searches Triggered . | . . . . Construction Impeded 1 | . . . 1 Haulers Reinforced . | . . . . Active Scanning Responses . | . . . . Cargo Convoy Interrupts . | . . . . Stealth | -11 -10 -9 -8 --------- Run | Yrd Mat Mat Mat Distress Signals 7 | . 2 4 1 Communications Jammed . | . . . . Distress Signals . | . . . . Times Spotted 76 | . 22 27 27 Peak Tracking Total 6 | . 5 6 6 Tactical Retreats 1 | . . . 1 Traps | -11 -10 -9 -8 ------- Run | Yrd Mat Mat Mat Traps Triggered 3 | . 1 1 1 Indirectly . | . . . . Trap Hack Attempts . | . . . . Triggered . | . . . . Disarmed . | . . . . Reprogrammed . | . . . . Reused . | . . . . Traps Extracted . | . . . . Installed . | . . . . Triggered . | . . . . Machines | -11 -10 -9 -8 ---------- Run | Yrd Mat Mat Mat Machines Disabled 10 | . 5 2 3 Max in Single Turn 1 | . 1 1 1 Machines Repaired . | . . . . Machines Dismantled . | . . . . Machines Sabotaged . | . . . . Overloaded Fab Kills . | . . . . Hacking | -11 -10 -9 -8 --------- Run | Yrd Mat Mat Mat Machines Accessed 3 | . . 1 2 Terminals . | . . . . Fabricators . | . . . . Repair Stations 2 | . . 1 1 Recycling Units . | . . . . Scanalyzers . | . . . . Garrison Access 1 | . . . 1 Total Hacks 13 | . . 8 5 Successful 8 | . . 6 2 Failed 5 | . . 2 3 Catastrophic 1 | . . . 1 Database Lockouts . | . . . . Manual . | . . . . Terminals . | . . . . Fabricators . | . . . . Repair Stations 10 | . . 8 2 Recycling Units . | . . . . Scanalyzers . | . . . . Garrison Access 3 | . . . 3 Terminal Hacks . | . . . . Fabricator Hacks . | . . . . Repair Station Hacks 8 | . . 6 2 Scan Component 4 | . . 3 1 Repair 4 | . . 3 1 Recycling Unit Hacks . | . . . . Scanalyzer . | . . . . Garrison Access Hacks . | . . . . Unauthorized Hacks . | . . . . Terminals . | . . . . Fabricators . | . . . . Repair Stations . | . . . . Recycling Units . | . . . . Scanalyzers . | . . . . Garrison Access . | . . . . Data Cores Recovered . | . . . . Used . | . . . . Hacking Detections 2 | . . 1 1 Full Trace Events 1 | . . . 1 Feedback Events . | . . . . Feedback Blocked . | . . . . Robot Schematics Acquired . | . . . . Robots Built . | . . . . Authchips . | . . . . Time . | . . . . Total Robot Build Rating . | . . . . Part Schematics Acquired . | . . . . Parts Built . | . . . . Authchips . | . . . . Time . | . . . . Total Part Build Rating . | . . . . Parts Repaired 4 | . . 3 1 Time 110 | . . 78 32 Parts Recycled . | . . . . Recycled Matter . | . . . . Retrieved Matter . | . . . . Retrieved Components . | . . . . Parts Scanalyzed . | . . . . Part Schematics Acquired . | . . . . Parts Damaged . | . . . . Bothacking | -11 -10 -9 -8 ------------ Run | Yrd Mat Mat Mat Used RIF Installer . | . . . . Robots Hacked . | . . . . Non-combat . | . . . . Combat . | . . . . Robot Hacks Applied . | . . . . Relay Couplers Released . | . . . . Fabnet Peak Effective % . | . . . . Robots Rewired . | . . . . Allies Hacked . | . . . . Hacks Repelled . | . . . . Allies | -11 -10 -9 -8 -------- Run | Yrd Mat Mat Mat Total Allies . | . . . . Largest Group . | . . . . Highest-Rated Group . | . . . . Highest-Rated Ally . | . . . . Total Orders . | . . . . Ally Attacks . | . . . . Total Damage . | . . . . Kills . | . . . . Allies Corrupted . | . . . . Allies Melted . | . . . . Intel | -11 -10 -9 -8 ------- Run | Yrd Mat Mat Mat Active Infowar (turns) . | . . . . Robot Analysis Total . | . . . . Derelict Logs Recovered . | . . . . Drone Launches . | . . . . Drone Recoveries . | . . . . Exploration | -11 -10 -9 -8 ------------- Run | Yrd Mat Mat Mat Turns Passed 2253 | 119 730 773 631 Spaces Moved 1044 | 66 372 357 249 Core 5 | 5 . . . Treads 1039 | 61 372 357 249 Legs . | . . . . Wheels . | . . . . Hover . | . . . . Flight . | . . . . Fastest Speed 50 | 50 160 160 160 Average Speed 159 | 151 160 160 161 Slowest Speed 240 | 160 160 160 240 Overloaded Moves . | . . . . Propulsion Burnouts . | . . . . Robots Hopped . | . . . . Potential Cave-ins . | . . . . Cave-ins Triggered . | . . . . Exploration Rate (%) 35 | 4 64 47 26 Regions Visited 3 Branch Regions . Pre-discovered Areas . | . . . . Known Exits Taken . | . . . . Unknown Exits Taken 3 | 1 1 1 . Scrap Searched . | . . . . Spaces Dug . | . . . . Terrain Destroyed 148 | . 14 52 82 Melee . | . . . . Projectile 8 | . 3 5 . AOE 140 | . 11 47 82 Terrain Rammed . | . . . . Walls Destroyed . | . . . . Machines Disabled . | . . . . Actions | -11 -10 -9 -8 --------- Run | Yrd Mat Mat Mat Total 1388 | 82 442 490 374 Wait 112 | 11 . 52 49 Move 1041 | 65 371 356 249 Hop . | . . . . Pick Up 22 | . 10 11 1 Fast Attach 12 | 6 1 4 1 Attach 15 | . 2 6 7 Detach 4 | . 3 1 . Swap 9 | . 4 2 3 Drop 5 | . 5 . . Fire 166 | . 46 57 63 Melee . | . . . . Ram . | . . . . Kick . | . . . . Crush 2 | . . 1 1 Escape Stasis . | . . . . Rewire . | . . . . Trap . | . . . . Miscellaneous . | . . . . Route ------- -11/Scrapyard -10/Materials (discovered 2 exits: *Mat / [*Min]) -9/Materials (discovered 3 exits: *Mat / [*Min x2]) -8/Materials History --------- Turn | Location | Event 7 | -11/Scrapyard | Discovered new exit (range 14) 120 | -11/Scrapyard | Entered Materials 314 | -10/Materials | Build established: Mutant 330 | -10/Materials | Discovered new exit (range 8) 765 | -10/Materials | Discovered new exit (range 10) 850 | -10/Materials | Entered another Materials area 850 | -9/Materials | Evolved 2 slots: Propulsion x1, Utility x1 931 | -9/Materials | Repaired Lgt. Treads 957 | -9/Materials | Repaired Lgt. Treads 983 | -9/Materials | Repaired Lgt. Treads 1017 | -9/Materials | Discovered new exit (range 16) 1278 | -9/Materials | Discovered new exit (range 14) 1606 | -9/Materials | Discovered new exit (range 10) 1623 | -9/Materials | Entered another Materials area 1623 | -8/Materials | Evolved 2 slots: Utility x2 2005 | -8/Materials | Garrison activated, responded to threat 2049 | -8/Materials | Lost 3 parts (3n) 2152 | -8/Materials | Repaired Hrd. Light Armor Plating 2239 | -8/Materials | Core integrity fell below 50% 2252 | -8/Materials | Core integrity fell below 20% 2254 | -8/Materials | Destroyed by G-47 Trooper with Particle Gun Last Messages --------------- 02229_ Destroyed Imp. Heat Sink. 02230_ K-01 Serf collects debris. 02236_ The unstable cave ceiling collapses. 02236_ K-01 Serf collects debris. 02236_ K-01 Serf destroyed. 02236_ Imp. Light Cannon destroyed. 02237_ Penetrated by Slug. 02237_ Knocked back. 02237_ K-01 Serf collects debris. 02238_ The unstable cave ceiling collapses. 02238_ Critical hit (Burn: +37). 02238_ K-01 Serf collects debris. 02240_ K-01 Serf destroyed. 02241_ K-01 Serf collects debris. 02246_ The unstable cave ceiling collapses. 02246_ K-01 Serf collects debris. 02246_ Imp. Targeting Computer destroyed. 02248_ K-01 Serf collects debris. 02251_ Knocked back. 02252_ K-01 Serf collects debris. Map ----- +----------------------------------------------------+ | ?????????????????????????????# ############## | | ?????????????????????????????# ### | | ?????????????????????????????# ^ | | ?????????????????????????????+ | | ?????????????????????????????# "" | | ?????????????????????????????# "T ^ | | ?????????????????????????????# " | | ?????????????????????????????# ^ ^ """ | | ?????????????????????????????# ^ """"" | | ??????????????????????????????# "" | | ??????????????????????????????# % % | | ??????????????????????????????# = | | ??????????????????????????????# [ [% | | ??????????????????????????????#%]% %#" "####+##### | | ??????????????????????????????#][!%##"G"#????????? | | ??????????????????????????????#*]%*## " #????????? | | ??????????????????????????#???# =[=######????????? | | ????????????????????????##;#### #?????????????? | | ????????????????????????# %%%% #?????????????? | | ???????????????????######g###### %#?????????????? | | ??????????????????## #????#% #?????????????? | | ??????????? ?????## # # #????# ##????????????? | | ??????????? ????# ## #????# ##????????????? | | ?????????? !##### ##%= ##??## ##????????????? | | ???????????? % % ! #??##%[ ##????????????? | | ???????????????# %#%@###### % ##????????????# | | ???????????????# #g ##= ##????????????# | | ???????????????#% kg *% ## ##????????????# | | ??????????????##+## ! k #%! #????????????# | | ??????????????# % ;! #????????????# | | ??????????????# =;% #????????????# | | ??????????????# ;;ggH ; #????????????# | | ????????# %# ;; g * ; #????????????# | | ??????? ! ##;;; k % ;######????????????? | | ??????? % ;#?????????????????? | | ??????? = ###%%%;;;;;;##?????????????????? | | ????????? ??## ; #; % #??????????????? | | ????????### ?###????# #### """ #??????????????? | | ?????????????????????# #??? ] "T" ???????????????? | | ?????????????????????# #??? ????????????????? | | ????????????????????? #??? * ????????????????? | | ????????????????????? #???####+##???????????????? | | ????????????????????? #?????????????????????????? | | ????????????????????? #?????????????????????????? | | ???????????????????? ?????????????????????????? | | ???????????????????? ###?????????????????????????? | | ????????????????????#????????????????????????????? | | ?????????????????????????????????????????????????? | | ?????????????????????????????????????????????????? | | ?????????????????????????????????????????????????? | +----------------------------------------------------+ Best States ------------- Heat Dissipation 45 Energy Generation 12 Energy Capacity 265 Matter Stores 300 Matter Capacity 300 Sight Range 16 Terrain Scan Density 10 Armor Coverage 150 Evasion (%) 40 Targeting Accuracy 6 Recoil Reduction 7 Item Schematics ----------------- None Robot Schematics ------------------ None Fabricated ------------ Nothing Repaired ---------- Lgt. Treads | 64% | -9/Materials Lgt. Treads | 49% | -9/Materials Hrd. Light Armor Plating | 15% | -8/Materials Alien Tech Used ----------------- None Achievements -------------- None Challenges ------------ None Game ------ Seed ProcessingSpikedBooster Manual? 0 Play Time 00:21:04 Cumulative 20.9 hours Start 2025.09.14 @ 16:46:26 End 2025.09.14 @ 21:28:02 Sessions 3 Manual Loads 0 Difficulty Rogue Special Mode None Game No. 92 Rogue 89 Adventurer 3 Explorer 0 Win Type - Total 0 Types 0/0/0/0/0/0/0/0/0/0 Lore% 8 Gallery% 20 Achievement% 19 Wizard Run 0 Options --------- Layout 0 ASCII 0 Keyboard 0 Movement Mouse Keybinds 0 Fullscreen 1 Font 18/SmallcapsGlow Map View 76x50 Zoom Use 0% Tactical HUD 1 Map Filters NONE Filters NONE Steam 1 RUN: adad415b-b68b-45aa-9332-081926d03a9a